[Event "10th Cherry Blossom Classic 2023"]
[Site "Dulles"]
[Date "2023.05.28"]
[Round "5.11"]
[White "Morefield, Jason"]
[Black "Kiewra, Keaton"]
[Result "1/2-1/2"]
[ECO "B33"]
[WhiteElo "2167"]
[BlackElo "2352"]
[Annotator "TA"]
[PlyCount "82"]
[EventDate "2023.05.24"]
[EventType "swiss"]
[EventCountry "USA"]
[SourceTitle "playchess.com"]
[Source "ChessBase"]
[SourceQuality "1"]
[TimeControl "5400+30"]

{[%evp 12,82,63,59,45,58,51,58,58,68,70,64,68,26,27,0,0,-18,0,-1,48,0,68,56,77,70,107,90,109,106,179,177,282,105,91,60,65,61,68,33,70,0,0,0,0,0,0,0,0,0,0,0,33,39,51,12,20,20,20,20,65,20,20,0,18,21,21,12,11,0,2,0,22]} 1. e4 {[%emt 0:01:17]} c5 {[%emt 0:06:58]} 2. Nf3 {[%emt 0:00:11]} Nc6 {[%emt 0:00:16]} 3. d4 {[%emt 0:00:08]} cxd4 {[%emt 0:00:07]} 4. Nxd4 {[%emt 0:00:09]} Nf6 {[%emt 0:00:04]} 5. Nc3 {[%emt 0:00:11]} e5 {[%emt 0:00:08]} 6. Ndb5 {[%emt 0:00:06]} h6 {[%emt 0:00:05]} 7. Nd5 {[%emt 0:02:06] White is more active.} Nxd5 {[%emt 0:00:06] B33: Sicilian: Pelikan and Sveshnikov Variations.} 8. exd5 {[%emt 0:00:10][%cal Od5d6] [#] d6! is the strong threat.} a6 $1 {[%emt 0:00:03]} 9. Nc3 {[%emt 0:06:01]} Nd4 {[%emt 0:00:50] White is slightly better.} 10. Bd3 {[%emt 0:01:39]} d6 {[%emt 0:01:05]} 11. O-O {[%emt 0:00:42]} g6 {[%emt 0:01:19]} 12. Be3 {[%emt 0:02:43]} Nf5 {[%emt 0:00:41]} 13. Bxf5 {[%emt 0:00:47]} Bxf5 {[%emt 0:00:09] [#]} 14. a4 $146 {[%emt 0:00:05]} ({Predecessor:} 14. f4 h5 15. Qd2 Bg7 16. Rf2 O-O 17. fxe5 Bxe5 18. Bd4 Bxd4 19. Qxd4 Re8 20. Raf1 {½-½ Van Kampen,R (2563)-Andersson,U (2571) Utrecht OKU op 39th 2012 (5)}) 14... Bg7 {[%emt 0:00:33]} 15. a5 {[%emt 0:00:31]} O-O {[%emt 0:00:46]} (15... Rc8 $11 {feels stronger.}) 16. Qd2 {[%emt 0:00:07]} (16. Na4 $1 $14) 16... Kh7 {[%emt 0:00:26]} (16... g5 $11) 17. Na4 $1 $14 {[%emt 0:00:18]} Rc8 {[%emt 0:00:44]} 18. Rac1 {[%emt 0:00:42]} Rc4 {[%emt 0:01:50]} 19. Nb6 {[%emt 0:00:14]} Rh4 {[%emt 0:00:17]} 20. c4 {[%emt 0:02:37]} Qf6 {[%emt 0:04:30]} (20... Re8 $16 {was necessary.}) 21. f3 $18 {[%emt 0:03:20]} h5 {[%emt 0:08:17]} (21... Re8 {keeps fighting.}) 22. Bg5 $2 {[%emt 0:03:29]} (22. g4 $18 {and White stays clearly on top. Black must now prevent Bg5.} Bxg4 23. Bg5 (23. fxg4 Rxg4+ 24. Kh1 Qh4 $16) 23... Bxf3 24. Bxf6 Rg4+ 25. Kf2 Rg2+ 26. Ke1 Rxd2 27. Kxd2 Bxf6 28. Rxf3 Bg5+ 29. Re3) 22... Rd4 $16 {[%emt 0:00:07]} 23. Qe3 {[%emt 0:07:51]} (23. Qxd4 {with more complications.} Qxg5 24. Qf2 e4 25. fxe4 Bxe4 26. Rcd1) 23... Rd3 $1 {[%emt 0:00:14]} 24. Bxf6 {[%emt 0:00:07]} (24. Qxd3 {feels hotter.} Qxg5 25. Qe2 e4 26. b4) 24... Rxe3 {[%emt 0:00:07]} 25. Bxg7 {[%emt 0:00:07]} Kxg7 {[%emt 0:00:07]} 26. Rfd1 {[%emt 0:04:07]} (26. b4 $14) 26... Re2 $11 {[%emt 0:07:10]} 27. c5 {[%emt 0:00:12]} dxc5 {[%emt 0:02:04]} ({Don't take} 27... Rxb2 28. c6 $16 (28. cxd6 Rd8 $11) (28. Nc4 Rb4 $16)) 28. d6 {[%emt 0:00:33]} e4 {[%emt 0:08:52][%cal Be5e4,Be4e3][%mdl 32]} 29. d7 {[%emt 0:01:17]} Rd8 {[%emt 0:00:21]} 30. Rxc5 {[%emt 0:00:21] [#] fxe4 would be deadly.} e3 {[%emt 0:00:14]} ({But not} 30... exf3 31. gxf3 Rc2 32. Rxc2 Bxc2 33. Rc1 $16) 31. Rc8 {[%emt 0:20:01]} Rxd7 {[%emt 0:03:46]} 32. Nxd7 {[%emt 0:00:09]} Bxd7 {[%emt 0:00:05][%mdl 4096] Endgame KRR-KRB} 33. Rc3 {[%emt 0:01:09]} (33. Rcc1 $5 {[%cal Rd1d7]} Bc6 34. Re1 Rxb2 35. Rxe3 $14) 33... Bb5 {[%emt 0:01:07]} 34. Rdc1 {[%emt 0:06:21] And now R3c2 would win.} Rxb2 {[%emt 0:05:41]} 35. Rxe3 {[%emt 0:00:07]} Bc6 {[%emt 0:01:46]} 36. Rc5 {[%emt 0:00:50]} Ra2 {[%emt 0:00:18] The position is equal.} 37. Re7 {[%emt 0:01:12]} h4 {[%emt 0:02:20]} 38. h3 {[%emt 0:00:35]} Ra1+ {[%emt 0:01:11]} 39. Kf2 {[%emt 0:00:14]} Ra2+ {[%emt 0:00:41]} 40. Kg1 {[%emt 0:01:50]} Ra1+ {[%emt 0:00:07]} 41. Kf2 {[%emt 0:00:12]} Ra2+ {[%emt 0:00:05] Weighted Error Value: White=0.17 (very precise) /Black=0.17 (very precise)} 1/2-1/2

[Event "10th Cherry Blossom Classic 2023"]
[Site "Dulles"]
[Date "2023.05.28"]
[Round "5.12"]
[White "Williams, Justus"]
[Black "Altman, Joshua"]
[Result "1-0"]
[ECO "A25"]
[WhiteElo "2396"]
[BlackElo "2120"]
[Annotator "TA"]
[PlyCount "139"]
[EventDate "2023.05.24"]
[EventType "swiss"]
[EventCountry "USA"]
[SourceTitle "playchess.com"]
[Source "ChessBase"]
[SourceQuality "1"]
[TimeControl "5400+30"]

{[%evp 12,139,27,14,23,0,0,0,0,0,0,-19,-10,-41,-36,-25,-31,-22,-29,-30,-25,-62,0,0,0,-43,-35,-32,-32,-47,-2,-14,0,-81,100,-49,90,94,102,93,99,88,88,85,89,86,82,78,77,77,78,77,78,78,78,60,95,42,87,65,103,16,112,45,141,99,147,106,115,120,91,89,93,88,119,124,181,141,262,270,358,344,350,352,314,332,421,421,379,329,319,279,294,83,65,0,189,171,260,272,234,119,640,624,651,632,573,523,695,672,651,660,752,802,1389,1462,2091,2103,12838,12839,12841,12841,12845,12845,12845,12846,12846,12847,12847,12847]} 1. c4 {[%emt 0:02:17]} e5 {[%emt 0:00:08]} 2. Nc3 {[%emt 0:00:20]} Nc6 {[%emt 0:00:15]} 3. g3 {[%emt 0:00:19]} Nf6 {[%emt 0:00:15]} 4. Bg2 {[%emt 0:00:19]} Bc5 {[%emt 0:00:24]} 5. e3 {[%emt 0:01:03]} O-O {[%emt 0:00:41]} 6. Nge2 {[%emt 0:01:15]} d6 {[%emt 0:00:09]} 7. d4 {[%emt 0:02:09]} Bb6 {[%emt 0:01:44] A25: English Opening vs King's Indian with ...Nc6 but without early d3.} 8. h3 {[%emt 0:00:49]} h6 {[%emt 0:03:55]} 9. O-O {[%emt 0:01:40]} exd4 {[%emt 0:09:53] The position is equal.} 10. exd4 {[%emt 0:00:25] [#]} Ne7 $146 {[%emt 0:01:58]} ({Predecessor:} 10... Re8 11. Be3 Ne7 12. c5 Ba5 13. Qa4 c6 14. cxd6 Ned5 15. Nxd5 Nxd5 16. Bxd5 cxd5 {1-0 Lanka,Z (2412)-Kalisky,V (2139) Skalica op 2021 (7)}) 11. g4 {[%emt 0:06:09]} c6 {[%emt 0:09:33]} 12. Ng3 {[%emt 0:02:43]} Nh7 {[%emt 0:09:32]} 13. f4 {[%emt 0:08:02]} d5 {[%emt 0:13:24]} 14. cxd5 $1 {[%emt 0:03:02]} Nxd5 {[%emt 0:06:01]} 15. Nxd5 {[%emt 0:02:34]} cxd5 {[%emt 0:00:02]} 16. f5 {[%emt 0:01:37]} Qf6 {[%emt 0:21:36]} (16... Bd7 $15) 17. Be3 {[%emt 0:08:28][%cal Bc1e3,Be3f2,Bf2g3][%mdl 32]} (17. Bxd5 $2 Rd8 18. Bxf7+ Qxf7 $19) 17... Re8 {[%emt 0:05:12]} 18. Bf2 {[%emt 0:02:22]} (18. Nh5 $5 {[%cal Rh5f6]} Qd6 19. Qd2 $14 (19. Bf4 Qb4 $11)) 18... Bd7 {[%emt 0:02:23]} 19. Nh5 {[%emt 0:02:50]} Qd6 {[%emt 0:02:15]} 20. Qd2 {[%emt 0:00:21]} Bb5 {[%emt 0:03:10]} 21. Bg3 {[%emt 0:01:26]} Qd7 {[%emt 0:03:11]} (21... Re2 $2 22. Qxe2 Bxe2 23. Bxd6 $18) 22. Rf2 {[%emt 0:03:23]} (22. Rfe1 $11) 22... f6 $2 {[%emt 0:01:03]} (22... Ng5 $17 {and life is bright. Strongly threatening ...Ne4.} 23. Bf4 Ne4 24. Bxe4 dxe4) 23. Nf4 {[%emt 0:07:09]} (23. h4 $1 $16) 23... Bc6 {[%emt 0:00:13] [#]} (23... Ng5 $1 $15 {keeps the upper hand.}) 24. h4 $1 $16 {[%emt 0:00:28]} Rac8 {[%emt 0:02:19]} 25. Rd1 {[%emt 0:00:52]} Bc7 {[%emt 0:00:42]} 26. Nh5 {[%emt 0:00:52]} Bxg3 {[%emt 0:00:35]} 27. Nxg3 {[%emt 0:00:03]} Re7 {[%emt 0:00:49]} 28. Re1 {[%emt 0:01:58]} Rce8 {[%emt 0:02:05]} 29. Rfe2 {[%emt 0:01:30]} Rxe2 {[%emt 0:00:22]} 30. Rxe2 {[%emt 0:00:02]} Rxe2 {[%emt 0:00:27]} 31. Qxe2 {[%emt 0:00:03]} Nf8 {[%emt 0:00:29]} 32. Nh5 {[%emt 0:00:25]} Qd6 {[%emt 0:00:34]} 33. Qe3 {[%emt 0:01:18]} Kf7 {[%emt 0:00:35]} 34. Nf4 {[%emt 0:00:33] White has more active pieces.} (34. a3 $16) 34... a6 {[%emt 0:00:50]} 35. a3 {[%emt 0:00:29]} a5 {[%emt 0:00:31]} 36. Kf2 {[%emt 0:01:33]} (36. Nh5 $16) 36... a4 {[%emt 0:00:38]} (36... g5 $1 $11 {remains equal.} 37. hxg5 (37. fxg6+ Nxg6 38. Nxg6 Kxg6 $14) 37... hxg5) 37. Bf3 {[%emt 0:01:34]} ({Better is} 37. Qg3 $16) 37... b6 {[%emt 0:00:27]} (37... g5 $14 38. hxg5 (38. fxg6+ Nxg6 39. Ng2 Kg7 $14) 38... hxg5) 38. Kg2 {[%emt 0:00:56]} Kg8 {[%emt 0:00:32]} (38... g5 $142) 39. Nd3 {[%emt 0:00:46]} Bb5 {[%emt 0:00:31]} 40. Qf4 $36 {[%emt 0:00:21][%mdl 2048] Keeping Black busy.} Qd8 {[%emt 0:00:33]} 41. Nb4 {[%emt 0:00:32]} Bc4 {[%emt 0:00:02]} 42. Kf2 {[%emt 0:03:08]} Kf7 {[%emt 0:00:22]} 43. Qg3 {[%emt 0:00:44]} (43. Qh2 {simplifies} Kg8 44. Qg2 Kh7 45. Bxd5 Bxd5 46. Nxd5 Qd6 47. Ke3) 43... Bb3 {[%emt 0:01:05]} (43... Kg8 $16) 44. Qg2 {[%emt 0:00:25][%cal Rf3d5]} Qd6 {[%emt 0:00:24]} (44... Qc7 $16 {was worth a try.}) 45. Bxd5+ $18 {[%emt 0:00:12]} ({But not} 45. Nxd5 $6 Qd8 46. Be4 b5 $16) 45... Ke7 {[%emt 0:00:39]} 46. Qe4+ {[%emt 0:01:03]} Kd8 {[%emt 0:00:26]} 47. Kg2 {[%emt 0:01:03] Against Qh2+} Bxd5 {[%emt 0:00:33]} 48. Nxd5 {[%emt 0:01:10][%mdl 4096] Endgame KQN-KQN} Kd7 {[%emt 0:00:30]} 49. Nc3 {[%emt 0:00:27]} Qc6 {[%emt 0:00:28]} 50. d5 {[%emt 0:01:28][%mdl 64] Overworked Piece} ({Weaker is} 50. Nd5 Kd6 51. Nc3 Qxe4+ 52. Nxe4+ Kd5 $14) 50... Qc5 {[%emt 0:00:11]} 51. Qxa4+ {[%emt 0:00:08]} Ke7 {[%emt 0:00:13]} 52. Qa7+ $2 {[%emt 0:00:38]} (52. Qe4+ $18 {has better winning chances.} Kf7 53. Ne2) 52... Nd7 $16 {[%emt 0:00:11]} 53. Qa4 {[%emt 0:02:39]} (53. Qb7 $14) 53... Ne5 $2 {[%emt 0:00:04]} (53... Nf8 $1 $11 {and Black has nothing to worry.}) 54. Qe4 $18 {[%emt 0:01:49]} ({Resist} 54. Qa7+ Nd7) 54... Qc4 {[%emt 0:00:16]} (54... Kd6 $142 55. g5 hxg5) 55. Qxc4 {[%emt 0:03:15]} Nxc4 {[%emt 0:00:05] [#] KN-KN} 56. Na4 {[%emt 0:01:08]} (56. Nd1 $1 $18) 56... Ne3+ $2 {[%emt 0:00:31][%mdl 8192] This move loses the game for Black.} (56... Kd6 $16) 57. Kf3 {[%emt 0:00:02] White is clearly winning.} Nxd5 {[%emt 0:00:05]} 58. Ke4 {[%emt 0:00:29]} Kd6 {[%emt 0:00:03]} 59. Nc3 {[%emt 0:00:12]} Ne7 {[%emt 0:00:32]} 60. Nb5+ {[%emt 0:00:41]} Kc5 {[%emt 0:02:37]} 61. Nd4 {[%emt 0:00:04]} Kc4 {[%emt 0:00:12]} 62. Ne6 {[%emt 0:03:21]} Kb3 {[%emt 0:01:31]} 63. Nxg7 {[%emt 0:00:37]} Kxb2 {[%emt 0:00:22]} 64. Ne8 {[%emt 0:00:52]} Kxa3 {[%emt 0:00:12]} 65. Nxf6 {[%emt 0:00:11]} b5 {[%emt 0:00:28]} 66. Nd5 {[%emt 0:00:29]} b4 {[%emt 0:00:57]} 67. Nxe7 {[%emt 0:00:22]} b3 {[%emt 0:00:05]} 68. Nd5 {[%emt 0:00:05]} b2 {[%emt 0:00:09]} 69. Nc3 {[%emt 0:00:03]} Kb3 {[%emt 0:00:07]} 70. Kd3 {[%emt 0:00:03] Weighted Error Value: White=0.30/Black=0.49} 1-0

[Event "10th Cherry Blossom Classic 2023"]
[Site "Dulles"]
[Date "2023.05.28"]
[Round "5.13"]
[White "Sinha, Sahil"]
[Black "Brady, Tyson"]
[Result "1-0"]
[ECO "E99"]
[WhiteElo "2317"]
[BlackElo "2092"]
[Annotator "TA"]
[PlyCount "101"]
[EventDate "2023.05.24"]
[EventType "swiss"]
[EventCountry "USA"]
[SourceTitle "playchess.com"]
[Source "ChessBase"]
[SourceQuality "1"]
[TimeControl "5400+30"]

{[%evp 24,101,69,75,81,49,57,47,70,70,73,56,80,62,80,77,91,86,87,0,60,44,70,77,190,198,256,271,268,262,256,195,287,265,267,118,239,256,261,260,253,265,254,250,248,225,229,132,118,123,231,259,274,87,91,115,119,133,137,156,139,137,152,145,141,126,160,8,8,0,43,50,55,14,402,404,4614,4610,5014,2337]} 1. d4 {[%emt 0:00:01]} Nf6 {[%emt 0:00:05]} 2. c4 {[%emt 0:00:03]} g6 {[%emt 0:00:03]} 3. Nc3 {[%emt 0:00:03]} Bg7 {[%emt 0:00:03]} 4. e4 {[%emt 0:00:03]} d6 {[%emt 0:00:02]} 5. Be2 {[%emt 0:00:03]} O-O {[%emt 0:00:04]} 6. Nf3 {[%emt 0:00:01]} e5 {[%emt 0:00:03]} 7. O-O {[%emt 0:00:03]} Nc6 {[%emt 0:00:01]} 8. d5 {[%emt 0:00:04]} Ne7 {[%emt 0:00:01]} 9. Ne1 {[%emt 0:00:01]} Nd7 {[%emt 0:00:08]} 10. Be3 {[%emt 0:00:08]} f5 {[%emt 0:00:04]} 11. f3 {[%emt 0:00:02]} f4 {[%emt 0:00:01]} 12. Bf2 {[%emt 0:00:05]} g5 {[%emt 0:00:01]} 13. Rc1 {[%emt 0:00:08]} Ng6 {[%emt 0:00:02] E99: King's Indian: Classical Main Line: 9 Ne1 Nd7 10 f3 f5.} 14. Nb5 {[%emt 0:00:25]} b6 {[%emt 0:00:23]} 15. b4 {[%emt 0:00:05]} a6 {[%emt 0:00:28] White is slightly better.} 16. Nc3 {[%emt 0:00:04] White is more active.} Rf7 {[%emt 0:00:01] [#]} 17. c5 $1 {[%emt 0:00:58]} h5 {[%emt 0:01:24]} (17... Bf8 18. Nd3) 18. Nd3 {[%emt 0:01:43]} Bf8 {[%emt 0:08:03]} 19. Kh1 {[%emt 0:04:11]} Rb8 {[%emt 0:09:31]} 20. cxb6 {[%emt 0:08:26]} cxb6 {[%emt 0:00:23]} 21. Nb2 {[%emt 0:03:14] [#]} ({White should play} 21. b5 $16) 21... b5 $146 {[%emt 0:04:01]} (21... Nf6 $1 $11) ({Predecessor:} 21... Nf6 22. Nca4 Bd7 23. b5 axb5 24. Nc3 g4 25. Bxb5 g3 26. Bxd7 Rxd7 27. Be1 Rh7 {½-½ Zhak,B (2597)-Sasikiran,K USA A email ICCF email 2015}) 22. a4 $14 {[%emt 0:02:15][%cal Ra4b5]} Nf6 {[%emt 0:00:03]} 23. axb5 {[%emt 0:01:44]} axb5 {[%emt 0:00:04]} (23... g4 $16 {was worth a try.}) 24. Nxb5 $18 {[%emt 0:02:01]} (24. Bxb5 g4 $16) 24... g4 {[%emt 0:05:34]} (24... Bd7 {was called for.}) 25. Na7 $1 {[%emt 0:01:12]} Rxa7 {[%emt 0:00:25]} 26. Bxa7 {[%emt 0:00:09]} Rxb4 {[%emt 0:02:07]} 27. Rc2 {[%emt 0:09:05]} g3 {[%emt 0:01:37]} (27... h4 $142 28. Bf2 (28. fxg4 Rb7 $18) 28... Rb8) 28. Qd2 {[%emt 0:07:02]} Rb7 {[%emt 0:01:11]} 29. Rfc1 {[%emt 0:01:20]} (29. Ba6 $18 {has better winning chances.} Rxa7 30. Bxc8 (30. Rxc8 Nxe4 31. Qd3 {[%mdl 64] Pin} Nf2+ 32. Rxf2 e4 $18)) 29... Bd7 {[%emt 0:00:09]} (29... Bh3 $16) 30. Bg1 {[%emt 0:00:52]} gxh2 {[%emt 0:02:01]} 31. Bf2 {[%emt 0:01:52]} (31. Kxh2 $2 Ng4+ 32. Kh1 Qh4+) 31... h4 {[%emt 0:01:23]} 32. Nc4 {[%emt 0:01:01]} h3 {[%emt 0:12:54]} 33. g4 {[%emt 0:00:34]} (33. Kxh2 hxg2 34. Rg1 (34. Kxg2 $2 Bh3+ 35. Kxh3 Nxe4 $19) 34... Nh5 35. Rxg2 Ng3 36. Bxg3 fxg3+ 37. Kg1 (37. Rxg3 $2 Qh4+ 38. Kg2 Kh7 $19) 37... Rb1+ 38. Rc1 Rxc1+ 39. Qxc1 Kh7 $16) 33... fxg3 {[%emt 0:00:57]} 34. Bxg3 {[%emt 0:00:05]} Nh5 {[%emt 0:00:59]} 35. Bf2 {[%emt 0:00:26]} (35. Bxh2 $18 {[%cal Oc4d6] Nxd6! would be deadly.} Be8 36. Rg1) 35... Qf6 $16 {[%emt 0:03:51]} 36. Kxh2 {[%emt 0:02:31] Black must now prevent Rg1.} Ngf4 {[%emt 0:13:38]} (36... Kh7 $16) 37. Rg1+ $18 {[%emt 0:02:37]} Kh8 {[%emt 0:00:06]} 38. Nb6 $2 {[%emt 0:06:08]} (38. Kh1 h2 39. Ra1 (39. Kxh2 $2 Nxe2 40. Qg5 Qf4+ 41. Qxf4 Nhxf4 $19) 39... Rb3 $11) (38. Be3 $18 {is more deadly.}) 38... Nxe2 $16 {[%emt 0:03:17]} 39. Qxe2 {[%emt 0:02:19] Hoping for Nxd7.} Bb5 {[%emt 0:03:08] ( -> ...Qf4+)} 40. Qd2 {[%emt 0:01:37] Qg5 is the strong threat.} Qxf3 {[%emt 0:10:05][%cal Oh5f6]} 41. Rc3 $40 {[%emt 0:01:09][%mdl 128] White has strong attack. Really sharp!} Qf4+ {[%emt 0:00:55]} 42. Qxf4 $1 {[%emt 0:00:06]} (42. Kxh3 Qxd2 43. Rf3 Nf4+ 44. Kg4 Be2 45. Rh1+ Kg8 46. Rg1 Rg7+ 47. Kf5 Bxf3 48. Rxg7+ Bxg7 49. Nd7 Qxf2 50. Nxe5 Bxe5 51. Kg5 Qg3+ 52. Kh6 Qh4#) 42... Nxf4 {[%emt 0:00:19]} 43. Rc8 {[%emt 0:01:07]} Rf7 {[%emt 0:00:00]} 44. Be3 $1 {[%emt 0:01:00]} Kh7 {[%emt 0:00:15] [#]} 45. Rg3 $2 {[%emt 0:06:07]} (45. Nc4 $1 $16) 45... Bf1 $1 $11 {[%emt 0:02:38]} 46. Nd7 {[%emt 0:03:00][%mdl 64] Deflection} Bg7 {[%emt 0:01:04]} (46... Bh6 $5 {[%cal Rf7d7]} 47. Rc7 Kh8 $11) 47. Rc7 {[%emt 0:00:48][%cal Od7f6]} Re7 {[%emt 0:05:34]} 48. Rg4 {[%emt 0:00:38]} (48. Bb6 $5) 48... Bg2 $2 {[%emt 0:00:29][%mdl 8192] [#]} (48... Kh6 $11) 49. Bc5 $1 $18 {[%emt 0:02:15]} dxc5 {[%emt 0:08:11]} (49... Bf3 $142 50. Bxd6 Rxd7 51. Rh4+ (51. Rxd7 Bxg4 52. Rf7 Kg6 $11) 51... Kg6 52. Rxd7 Bf6 53. Rxf4 exf4) 50. d6 {[%emt 0:00:04]} Rf7 {[%emt 0:00:19]} 51. Nxc5 {[%emt 0:01:18][%mdl 64] Discovered Attack. Ingenious play by Sinha!   Weighted Error Value: White=0.32/Black=0.30} 1-0